Workbook

Sheet 表 (Excel提出用)
B2: 特定給食施設栄養管理報告書（事業所・学校等） | W2: （令和 | AD2: 年 | AH2: 月分）
B3: 施設名 | N3: 設置者（職・氏名）
B4: 郵便番号 所在地 | N4: 給食責任者（職・氏名）
B5: 電話番号 FAX番号 | N5: 作成者（職・氏名）
B6: e-mail | N6: 連絡先電話番号
B8: 【施設種別】 | I8: （ | M8: ） | N8: 委託業者 | P8: 名称
B9: 給食従事者数（人） | F9: 施 設 | J9: 委託業者 | P9: 代表者
F10: 常 勤 | H10: 常勤以外 | J10: 常 勤 | L10: 常勤以外 | P10: 所在地
C11: 管理栄養士 | P11: 電話番号
C12: 栄 養 士 | N12: 【給食管理等について検討する会議】 | AF12: （ | AI12: 回/年）
C13: 調 理 師 | N13: 構成職種 | P13: 施設
C14: 調 理 員 | AH14: ( | AK14: )
C15: そ の 他 | P15: 委託業者
C16: 合 計 | F16: =SUM(F11:F15) -> 0 | H16: =SUM(H11:H15) -> 0 | J16: =SUM(J11:J15) -> 0 | L16: =SUM(L11:L15) -> 0 | R16: 朝食 | V16: 昼食 | Z16: 夕食 | AH16: 合計
B17: 【施設外調理】 | H17: （ | M17: ） | N17: 食数 | AH17: =SUM(R17:AD17) -> 0
B18: 【給食利用者の把握】 | N18: 食材料費 （円／人） | AH18: =SUM(R18:AD18) -> 0
H19: （ | J19: 年 | L19: 月現在） | N19: 身体活動レベル・年齢区分・性別人数 | P19: 身体活動 レベル | T19: 15～17歳 | W19: 18～29歳 | Z19: 30～49歳 | AC19: 50～64歳 | AF19: 65～74歳 | AI19: 75歳以上
B20: 【健康管理部門との連携】 | P20: Ⅰ | R20: 男性
B21: 【身体の状況】 | H21: 献立への配慮 | R21: 女性 | AT21: 【構成職種】
B22: １.体格 | D22: 肥満 | G22: ％ | I22: （ | M22: ） | P22: Ⅱ | R22: 男性 | AM22: 【構成職種】 | AN22: その他 | AO22: FALSE | AT22: 施設 | AU22: 施設長 | AV22: FALSE
D23: やせ | G23: ％ | I23: （ | M23: ） | R23: 女性 | AM23: 【栄養指導・内容】 | AN23: その他 | AO23: FALSE | AU23: 管理栄養士 | AV23: FALSE
B24: ２.高血圧 | G24: ％ | I24: （ | M24: ） | P24: Ⅲ | R24: 男性 | AM24: 【栄養指導・方法】 | AN24: その他 | AO24: FALSE | AU24: 栄養士 | AV24: FALSE
B25: ３.脂質異常症 | G25: ％ | I25: （ | M25: ） | R25: 女性 | AU25: 産業医 | AV25: FALSE
B26: ４.高血糖 | G26: ％ | I26: （ | M26: ） | P26: 合計 | T26: =SUM(T20:T25) -> 0 | W26: =SUM(W20:W25) -> 0 | Z26: =SUM(Z20:Z25) -> 0 | AC26: =SUM(AC20:AC25) -> 0 | AF26: =SUM(AF20:AF25) -> 0 | AI26: =SUM(AI20:AI25) -> 0 | AM26: 【献立の提示】 | AQ26: 【栄養情報の提供】 | AU26: 保健師 | AV26: FALSE
B27: 【給食形態】 | L27: （ | AD27: ） | AM27: 献立表 | AN27: FALSE | AO27: =IF(AN27=TRUE,1,"") ->  | AQ27: ポスター | AR27: FALSE | AU27: 看護師 | AV27: FALSE
B28: 【献立の提示】 | H28: [ | M28: （ | S28: ） | Y28: ( | AJ28: )] | AM28: 実物 | AN28: FALSE | AO28: =IF(AN28=TRUE,2,"") ->  | AQ28: 卓上メモ | AR28: FALSE | AU28: 事務職 | AV28: FALSE
F29: ※カフェテリア等の場合【モデル献立の提示】 | AM29: 写真 | AN29: FALSE | AO29: =IF(AN29=TRUE,3,"") ->  | AQ29: 一口メモ | AR29: FALSE | AU29: 調理師(員) | AV29: FALSE
B30: 【栄養成分表示】 | AE30: ( | AK30: ) | AM30: その他 | AN30: FALSE | AO30: =IF(AN30=TRUE,4,"") ->  | AQ30: ポップ | AR30: FALSE | AT30: 委託業者 | AU30: 管理栄養士 | AV30: FALSE
B31: 【喫食調査】 | R31: ( | X31: ） | AD31: （ | AK31: ) | AO31: =MAX(AO27:AO30) -> 0 | AQ31: その他 | AR31: FALSE | AU31: 栄養士 | AV31: FALSE
B32: 【栄養情報の提供】 | AD32: （ | AK32: ) | AM32: 展示 | AN32: FALSE | AU32: 調理師(員) | AV32: FALSE
B33: 栄養指導 | C33: 個別指導 | E33: 内容 | G33: 集団指導 | K33: 内容 | AH33: ( | AK33: ) | AM33: 【栄養成分表示】 | AQ33: 【喫食調査】 | AU33: 事務職 | AV33: FALSE
D34: 人 | H34: 回 | J34: 人 | K34: 方法 | X34: ( | AK34: ) | AM34: エネルギー | AN34: FALSE | AQ34: 嗜好調査 | AR34: FALSE | AU34: その他 | AV34: FALSE
B35: 【非常時危機管理対策】 | G35: 食中毒マニュアルの整備： | AM35: たんぱく質 | AN35: FALSE | AQ35: アンケート | AR35: FALSE
B36: （食関連） | G36: 災害時マニュアルの整備： | S36: 食品等の備蓄： | AF36: ( | AI36: 日分 | AK36: ) | AM36: 脂質 | AN36: FALSE | AQ36: 残食調査 | AR36: FALSE | AS36: 個別 | AT36: FALSE
B37: 【施設の健康課題に対する取り組み】 | N37: 【栄養管理の評価】 | AM37: 炭水化物 | AN37: FALSE | AQ37: その他 | AR37: FALSE | AS37: 集団 | AT37: FALSE
AM38: 食塩相当量 | AN38: FALSE
AK39: （Ｒ３.３） | AM39: その他 | AN39: FALSE

Sheet 裏（Excel提出用）
B2: ※1 | C2: 男性 | G2: 歳 | H2: 女性 | L2: 歳 | N2: 食品群 | T2: 目標量 （ｇ） | W2: 給与量 （ｇ）
B3: ※2 | C3: 1人[ | H3: ( | K3: )]当たり | N3: 穀類 | P3: 米
B4: ※3 | C4: 下記以外に食事基準の設定がある食事 | P4: パ ン 類
I5: （ | K5: ）種類 | P5: め ん 類
P6: その他の穀類 | AB6: 【設定回数】
B7: 【基準設定】 | H7: （ | J7: 年 | L7: 月 | M7: ） | N7: いも及び でん粉類 | P7: い も | AB7: 朝食 | AC7: FALSE | AD7: =IF(AC7=TRUE,1,"") -> 
B8: 【栄養価計算の基準】 | P8: いも加工品 | AB8: 昼食 | AC8: FALSE | AD8: =IF(AC8=TRUE,1,"") -> 
B9: 栄養素等 | F9: （単位） | H9: 給与栄養目標量 | K9: 給与栄養量 | N9: 砂糖及び甘味類 | AB9: 夕食 | AC9: FALSE
B10: エネルギー | F10: （ｋｃａｌ） | N10: 豆類 | P10: 大豆製品 | AB10: 計 | AD10: =SUM(AD7:AD9) -> 0
P11: 大豆、その他の豆類
B12: たんぱく質 | F12: （ｇ） | N12: 種 実 類
N13: 野菜類 | P13: 緑黄色野菜
B14: 脂 質 | F14: （ｇ） | P14: その他の野菜
P15: 野菜漬物
B16: カルシウム | F16: （ｍｇ） | N16: 果実類 | P16: 果 実
P17: 果実加工品
B18: 鉄 | F18: （ｍｇ） | N18: きのこ類
N19: 藻 類
B20: ビタミンＡ （レチノール活性当量） | F20: （μｇＲＡＥ） | N20: 魚介類 | P20: 魚介類（生）
P21: 干物、塩蔵、缶詰
B22: ビタミンＢ1 | F22: （ｍｇ） | P22: 練 製 品
N23: 肉類 | P23: 肉類（生）
B24: ビタミンＢ2 | F24: （ｍｇ） | P24: 肉加工品
N25: 卵 類
B26: ビタミンＣ | F26: （ｍｇ） | N26: 乳類 | P26: 牛 乳
P27: 乳 製 品
B28: 食物繊維 | F28: （ｇ） | N28: 油脂類 | P28: 植 物 性
P29: 動 物 性
B30: 食塩相当量 | F30: （ｇ） | N30: 調味料 及び 香辛料類 | P30: 食 塩
P31: しょうゆ
B32: エネルギー 産生栄養素 バランス （％エネルギー） | E32: たんぱく質 | H32: =IF(H12=0,"",H12*4/H10) ->  | K32: =IF(K12=0,"",K12*4/K10) ->  | P32: み そ
E33: 脂 質 | H33: =IF(H14=0,"",H14*9/H10) ->  | K33: =IF(K14=0,"",K14*9/K10) ->  | P33: その他の調味料
E34: 炭水化物 | H34: =IF(H10=0,"",(H10-(H12*4+H14*9))/H10) ->  | K34: =IF(K10=0,"",(K10-(K12*4+K14*9))/K10) ->  | N34: 調理済み流通食品類
N36: 合 計 | T36: =SUM(T3:T35) -> 0 | W36: =SUM(W3:W35) -> 0
B37: 上記の食種における栄養補助食品等の使用状況
B39: 栄養補助食品等の名称 | K39: 栄養素名 | O39: 使用回数 | S39: 使用量 | W39: 給与量(単位)
O40: ( | Q40: )回/ | S40: ( | U40: )g/回 | W40: ( | Y40: )/回
O41: ( | Q41: )回/ | S41: ( | U41: )g/回 | W41: ( | Y41: )/回
O42: ( | Q42: )回/ | S42: ( | U42: )g/回 | W42: ( | Y42: )/回

Sheet 保健所事務処理シート (hidden)
A1: 新たに提出があれば、コピーして行挿入 | D1: 給食従事者数【施設側】 | N1: 給食従事者数【委託側：院外調理は全て空欄】 | X1: 保健衛生統計用 | AC1: まとめ用 | AI1: 配置状況 | AJ1: 運営形態 | AK1: 施設外調理 | AL1: 会議 | AM1: 給食回数 | AN1: 食数 | AV1: 給食材料費 | AZ1: 利用者の把握 | DB1: 給食形態 | DC1: 献立提示 | DD1: （実施なし：空白） | DH1: 栄養成分表示 | DI1: (実施なし：空白） | DO1: 喫食調査 | DT1: 栄養情報提供 | DZ1: 非常時危機管理対策（空白は999） | ED1: （裏面） | EF1: 給 与 栄 養 目 標 量 及 び 給 与 栄 養 給 与 量 | FB1: エ ネ ル ギ ー 比 率 | FH1: 食 品 構 成
A2: 各項目不明には"９９９"を入力 | C2: 施設種別 | D2: 管理栄養士 | F2: 栄養士 | H2: 調理師 | J2: 調理員 | L2: その他 | N2: 管理栄養士 | P2: 栄養士 | R2: 調理師 | T2: 調理員 | V2: その他 | X2: 管栄(常) | Y2: 栄(常) | Z2: 調理師(常＋非常) | AA2: 調理員(常＋非常) | AB2: その他(常＋非常) | AQ2: 入力不要 | AR2: 入力不要 | AS2: 入力不要 | AT2: 入力不要 | AU2: 入力不要 | AZ2: 身体の状況 | BQ2: 身体活動レベル | DB2: ２、３に○の場合は３「混合」のみとする | DH2: 成分表示 | DI2: 表示項目 | DO2: 嗜好調査 | DP2: アンケート | DQ2: その他 | DR2: 残食調査 | DT2: 栄養情報提供 | DU2: 提供方法 | DZ2: マニュアル | EA2: 災害 | EB2: 備蓄 | ED2: 設定回数 | EF2: 目標量 | EQ2: 給与 | FB2: 目標 | FE2: 給与 | FH2: 目標 | GN2: 入力不要 | GO2: 給与 | HU2: 入力不要 | HV2: 補助食品の使用
C3: １：事業所 ２：学校 ３：その他 | D3: 実数入力 （０も入力） | X3: 入力不要 | Y3: 入力不要 | Z3: 入力不要 | AA3: 入力不要 | AB3: 入力不要 | AC3: 入力不要 | AD3: 入力不要 | AE3: 入力不要 | AF3: 入力不要 | AG3: 入力不要 | AH3: 入力不要 | AI3: 入力不要 １：管栄のみ ２：管栄・栄両方 ３：栄のみ ４：両方無 | AJ3: １：直営 ２：委託 | AK3: １：有 ２：無 | AL3: １：有 ２：無 | AM3: １：1回 ２：２回 ３：３回 | AN3: 実数入力（０も入れる） | AR3: １：100食未満 ２：100食以上 ３：300食以上 ４：500食以上 | AS3: １：250食未満 ２：250食以上 ３：750食以上 ４：1500食以上 | AT3: （1回又は1日） 1：100食未満、250食未満 ２：100食以上、250食以上 ３：300食以上、750食以上 ４：500食以上、1500食以上 | AU3: 入力不要 （1日あたり） １：100食未満 ２：100食以上 ３：300食以上 ４：500食以上 | AV3: 実数入力 （０も入れる） | AY3: 入力不要 | AZ3: １：有 ２：無 | BA3: 肥満 （%） | BB3: １：有 ２：無 | BC3: 有りの場合 | BD3: やせ （％） | BE3: １：有 ２：無 | BF3: 有りの場合 | BG3: 高血圧 （%） | BH3: １：有 ２：無 | BI3: 有りの場合 | BJ3: 脂質異常症 （%） | BK3: １：有 ２：無 | BL3: 有りの場合 | BM3: 高血糖 （%） | BN3: １：有 ２：無 | BO3: 有りの場合 | BP3: １：有 ２：無 | BQ3: Ⅰ 男性 | BW3: Ⅰ 女性 | CC3: Ⅱ 男性 | CI3: Ⅱ 女性 | CO3: Ⅲ 男性 | CU3: Ⅲ 女性 | DA3: 入力不要 １：身体状況のみ ２：身体活動レベルのみ ３：両方 ４：どちらも無 | DB3: １：単一定食 ２：複数定食 ３：混合 ４：カフェテリア ５：その他（具体に入力） | DC3: １：有 ２：無 | DD3: 有れば１ | DE3: 有れば１ | DF3: 有れば１ | DG3: 有れば項目記載 | DH3: １：有 ２：無 | DI3: 有れば１ | DJ3: 有れば１ | DK3: 有れば１ | DL3: 有れば１ | DM3: 有れば１ | DN3: 有れば項目記載 | DO3: １：有 ２：無 | DP3: １：有 ２：無 | DQ3: 有れば項目記載 | DR3: １：有 ２：無 | DS3: 入力不要 １：嗜好調査のみ ２：残食調査のみ ３：両方 ４：どちらも無 | DT3: １：有 ２：無 | DU3: 有れば１ | DV3: 有れば１ | DW3: 有れば１ | DX3: 有れば１ | DY3: 有れば内容記載 | DZ3: １：有 ２：無 | EA3: １：有 ２：無 | EB3: １：有 ２：無 | EC3: 備蓄日数 | ED3: １：1食設定 ２：それ以外 | EE3: １：八訂 ２：七訂 | EF3: 設定回数が１の場合のみ入力 | FD3: 57.5 | FH3: 設定回数が１の場合のみ入力 | HV3: １：有 ２：無
A4: 施設番号 | B4: 施設名 | C4: 施設種別 | D4: 施管栄（常） | E4: 施管栄（非） | F4: 施栄（常） | G4: 施栄（非） | H4: 施調理師（常） | I4: 施調理師（非） | J4: 施調理員（常） | K4: 施調理員（非） | L4: その他（常） | M4: その他（非） | N4: 委管栄（常） | O4: 委管栄（非） | P4: 委栄（常） | Q4: 委栄（非） | R4: 委調理師（常） | S4: 委調理師（非） | T4: 委調理員（常） | U4: 委調理員（非） | V4: その他（常）2 | W4: その他（非）3 | X4: 管栄合計 | Y4: 栄合計 | Z4: 調理師合計 | AA4: 調理員合計 | AB4: その他合計 | AC4: 施調理師合計 | AD4: 施調理員合計 | AE4: 施その他合計 | AF4: 委調理師合計 | AG4: 委調理員合計 | AH4: 委その他合計 | AI4: 配置状況 | AJ4: 運営形態 | AK4: 施設外調理 | AL4: 会議 | AM4: 給食回数 | AN4: 朝食 | AO4: 昼食 | AP4: 夕食 | AQ4: 合計 | AR4: 食数（1回） | AS4: 食数（１日） | AT4: まとめ用規模 | AU4: 統計用規模 | AV4: 材料費（朝） | AW4: 材料費（昼） | AX4: 材料費（夕） | AY4: 材料費合計 | AZ4: 身体状況 | BA4: 身体状況（肥満） | BB4: 肥満（有無） | BC4: 肥満（有りの場合） | BD4: 身体状況（やせ） | BE4: やせ（有無） | BF4: やせ（有りの場合） | BG4: 身体状況（高血圧） | BH4: 高血圧（有無） | BI4: 高血圧（有りの場合） | BJ4: 身体状況（脂質異常症） | BK4: 脂質異常症（有無） | BL4: 脂質異常症（有りの場合） | BM4: 身体状況（高血糖） | BN4: 高血糖（有無） | BO4: 高血糖（有りの場合） | BP4: 身体活動レベル | BQ4: 15-17歳 | BR4: 18-29歳 | BS4: 30-49歳 | BT4: 50-64歳 | BU4: 65-74歳 | BV4: 75歳以上 | BW4: 15-17歳 | BX4: 18-29歳 | BY4: 30-49歳 | BZ4: 50-64歳 | CA4: 65-74歳 | CB4: 75歳以上 | CC4: 15-17歳 | CD4: 18-29歳 | CE4: 30-49歳 | CF4: 50-64歳 | CG4: 65-74歳 | CH4: 75歳以上 | CI4: 15-17歳 | CJ4: 18-29歳 | CK4: 30-49歳 | CL4: 50-64歳 | CM4: 65-74歳 | CN4: 75歳以上 | CO4: 15-17歳 | CP4: 18-29歳 | CQ4: 30-49歳 | CR4: 50-64歳 | CS4: 65-74歳 | CT4: 75歳以上 | CU4: 15-17歳 | CV4: 18-29歳 | CW4: 30-49歳 | CX4: 50-64歳 | CY4: 65-74歳 | CZ4: 75歳以上 | DA4: 把握状況 | DB4: 形態 | DC4: 提示 | DD4: 献立表 | DE4: 展示(実物) | DF4: 展示(写真) | DG4: その他 | DH4: 成分表示 | DI4: 表示E | DJ4: 表示P | DK4: 表示F | DL4: 表示C | DM4: 表示Nacl | DN4: その他 | DO4: 嗜好 | DP4: アンケート | DQ4: その他 | DR4: 残食 | DS4: 喫食調査状況 | DT4: 情報提供 | DU4: ポスター | DV4: 卓上メモ | DW4: 一口メモ | DX4: ポップ | DY4: その他 | DZ4: 食中毒 | EA4: 災害時 | EB4: 備蓄 | EC4: 備蓄日数 | ED4: 設定回数 | EE4: 栄養価の基準 | EF4: エネルギー | EG4: たんぱく質 | EH4: 脂質 | EI4: カルシウム | EJ4: 鉄 | EK4: ビタミンA | EL4: ビタミンB1 | EM4: ビタミンB2 | EN4: ビタミンC | EO4: 食物繊維 | EP4: 食塩相当量 | EQ4: エネルギー | ER4: たんぱく質 | ES4: 脂質 | ET4: カルシウム | EU4: 鉄 | EV4: ビタミンA | EW4: ビタミンB1 | EX4: ビタミンB2 | EY4: ビタミンC | EZ4: 食物繊維 | FA4: 食塩相当量 | FB4: た質Ｅ比率 | FC4: 脂肪Ｅ比率 | FD4: 炭化Ｅ比率 | FE4: た質Ｅ比率13 | FF4: 脂肪Ｅ比率14 | FG4: 炭化Ｅ比率15 | FH4: 米 | FI4: パン類 | FJ4: めん類 | FK4: その他穀類 | FL4: いも類 | FM4: いも加工品 | FN4: 砂糖甘味類 | FO4: 大豆製品 | FP4: その他豆類 | FQ4: 種実類 | FR4: 緑黄色野菜 | FS4: その他野菜 | FT4: 野菜漬物 | FU4: 果実類 | FV4: 果実加工品 | FW4: きのこ類 | FX4: 藻類 | FY4: 魚介類(生) | FZ4: 干物、缶詰 | GA4: 練製品 | GB4: 肉類（生） | GC4: 肉加工品 | GD4: 卵類 | GE4: 牛乳 | GF4: 乳製品 | GG4: 植物性油脂 | GH4: 動物性油脂 | GI4: 食塩 | GJ4: しょうゆ | GK4: みそ | GL4: 調味料 | GM4: 調理済食品 | GN4: 合計 | GO4: 米 | GP4: パン類 | GQ4: めん類 | GR4: その他穀類 | GS4: いも類 | GT4: いも加工品 | GU4: 砂糖甘味類 | GV4: 大豆製品 | GW4: その他豆類 | GX4: 種実類 | GY4: 緑黄色野菜 | GZ4: その他野菜 | HA4: 野菜漬物 | HB4: 果実類 | HC4: 果実加工品 | HD4: きのこ類 | HE4: 藻類 | HF4: 魚介類(生) | HG4: 干物、缶詰 | HH4: 練製品 | HI4: 肉類（生） | HJ4: 肉加工品 | HK4: 卵類 | HL4: 牛乳 | HM4: 乳製品 | HN4: 植物性油脂 | HO4: 動物性油脂 | HP4: 食塩 | HQ4: しょうゆ | HR4: みそ | HS4: 調味料 | HT4: 調理済食品 | HU4: 合計 | HV4: 補助食品の使用
B5: ='表 (Excel提出用)'!D3 -> 0 | C5: =IF('表 (Excel提出用)'!E8="","",IF('表 (Excel提出用)'!E8="1.事業所",1,IF('表 (Excel提出用)'!E8="2.学校",2,IF('表 (Excel提出用)'!E8="3.その他",3)))) ->  | D5: ='表 (Excel提出用)'!F11 -> 0 | E5: ='表 (Excel提出用)'!H11 -> 0 | F5: ='表 (Excel提出用)'!F12 -> 0 | G5: ='表 (Excel提出用)'!H12 -> 0 | H5: ='表 (Excel提出用)'!F13 -> 0 | I5: ='表 (Excel提出用)'!H13 -> 0 | J5: ='表 (Excel提出用)'!F14 -> 0 | K5: ='表 (Excel提出用)'!H14 -> 0 | L5: ='表 (Excel提出用)'!F15 -> 0 | M5: ='表 (Excel提出用)'!H15 -> 0 | N5: ='表 (Excel提出用)'!J11 -> 0 | O5: ='表 (Excel提出用)'!L11 -> 0 | P5: ='表 (Excel提出用)'!J12 -> 0 | Q5: ='表 (Excel提出用)'!L12 -> 0 | R5: ='表 (Excel提出用)'!J13 -> 0 | S5: ='表 (Excel提出用)'!L13 -> 0 | T5: ='表 (Excel提出用)'!J14 -> 0 | U5: ='表 (Excel提出用)'!L14 -> 0 | V5: ='表 (Excel提出用)'!J15 -> 0 | W5: ='表 (Excel提出用)'!L15 -> 0 | X5: =IF(AND(D5="",N5=""),"",D5+N5) -> 0 | Y5: =IF(AND(F5="",P5=""),"",F5+P5) -> 0 | Z5: =IF(AND(H5="",I5="",R5="",S5=""),"",SUM(H5:I5,R5:S5)) -> 0 | AA5: =IF(AND(J5="",K5="",T5="",U5=""),"",SUM(J5:K5,T5:U5)) -> 0 | AB5: =IF(AND(L5="",M5="",V5="",W5=""),"",SUM(L5:M5,V5:W5)) -> 0 | AC5: =SUM(H5:I5) -> 0 | AD5: =SUM(J5:K5) -> 0 | AE5: =SUM(L5:M5) -> 0 | AF5: =SUM(R5:S5) -> 0 | AG5: =SUM(T5:U5) -> 0 | AH5: =SUM(V5:W5) -> 0 | AI5: =IF(AND(D5="",N5="",F5="",P5=""),"",IF(AND(D5+N5>0,F5+P5=0),1,IF(AND(D5+N5>0,F5+P5>0),2,IF(AND(D5+N5=0,F5+P5>0),3,4)))) -> 4 | AJ5: =IF('表 (Excel提出用)'!T8<>"",2,1) -> 1 | AK5: =IF('表 (Excel提出用)'!F17="有",1,IF('表 (Excel提出用)'!F17="無",2,IF('表 (Excel提出用)'!F17="",""))) ->  | AL5: =IF('表 (Excel提出用)'!AA12="有",1,IF('表 (Excel提出用)'!AA12="無",2,IF('表 (Excel提出用)'!AA12="",""))) ->  | AM5: =IF(AND(AN5="",AO5="",AP5=""),"",COUNTIF(AN5:AP5,"<>0")) ->  | AN5: =IF('表 (Excel提出用)'!R17="","",'表 (Excel提出用)'!R17) ->  | AO5: =IF('表 (Excel提出用)'!V17="","",'表 (Excel提出用)'!V17) ->  | AP5: =IF('表 (Excel提出用)'!Z17="","",'表 (Excel提出用)'!Z17) ->  | AQ5: =IF(AND(AN5="",AO5="",AP5=""),"",SUM(AN5:AP5)) ->  | AR5: =IF(AQ5="","",IF(OR(AN5<100,AO5<100,AP5<100),1,IF(OR(AN5>499,AO5>499,AP5>499),4,IF(OR(AN5>299,AO5>299,AP5>299),3,IF(OR(AN5>99,AO5>99,AP5>99,),2))))) ->  | AS5: =IF(AQ5="","",IF(AQ5<250,1,IF(AQ5>1499,4,IF(AQ5>749,3,IF(AQ5>249,2))))) ->  | AT5: =IF(AND(AR5="",AS5=""),"",MAX(AR5:AS5)) ->  | AU5: =IF(AQ5="","",IF(AQ5>499,4,IF(AQ5>299,3,IF(AQ5>99,2,IF(AQ5<100,1))))) ->  | AV5: =IF('表 (Excel提出用)'!R18="","",'表 (Excel提出用)'!R18) ->  | AW5: =IF('表 (Excel提出用)'!V18="","",'表 (Excel提出用)'!V18) ->  | AX5: =IF('表 (Excel提出用)'!Z18="","",'表 (Excel提出用)'!Z18) ->  | AY5: =IF(AND(AV5="",AW5="",AX5=""),"",SUM(AV5:AX5)) ->  | AZ5: =IF('表 (Excel提出用)'!H18="有",1,IF('表 (Excel提出用)'!H18="無",2,IF('表 (Excel提出用)'!H18="",""))) ->  | BA5: =IF('表 (Excel提出用)'!F22="","",'表 (Excel提出用)'!F22) ->  | BB5: =IF('表 (Excel提出用)'!H22="","",IF('表 (Excel提出用)'!H22="有",1,IF('表 (Excel提出用)'!H22="無",2))) ->  | BC5: =IF('表 (Excel提出用)'!J22="","",'表 (Excel提出用)'!J22) ->  | BD5: =IF('表 (Excel提出用)'!F23="","",'表 (Excel提出用)'!F23) ->  | BE5: =IF('表 (Excel提出用)'!H23="","",IF('表 (Excel提出用)'!H23="有",1,IF('表 (Excel提出用)'!H23="無",2))) ->  | BF5: =IF('表 (Excel提出用)'!J23="","",'表 (Excel提出用)'!J23) ->  | BG5: =IF('表 (Excel提出用)'!F24="","",'表 (Excel提出用)'!F24) ->  | BH5: =IF('表 (Excel提出用)'!H24="","",IF('表 (Excel提出用)'!H24="有",1,IF('表 (Excel提出用)'!H24="無",2))) ->  | BI5: =IF('表 (Excel提出用)'!J24="","",'表 (Excel提出用)'!J24) ->  | BJ5: =IF('表 (Excel提出用)'!F25="","",'表 (Excel提出用)'!F25) ->  | BK5: =IF('表 (Excel提出用)'!H25="","",IF('表 (Excel提出用)'!H25="有",1,IF('表 (Excel提出用)'!H25="無",2))) ->  | BL5: =IF('表 (Excel提出用)'!J25="","",'表 (Excel提出用)'!J25) ->  | BM5: =IF('表 (Excel提出用)'!F26="","",'表 (Excel提出用)'!F26) ->  | BN5: =IF('表 (Excel提出用)'!H26="","",IF('表 (Excel提出用)'!H26="有",1,IF('表 (Excel提出用)'!H26="無",2))) ->  | BO5: =IF('表 (Excel提出用)'!J26="","",'表 (Excel提出用)'!J26) ->  | BP5: =IF(AND('表 (Excel提出用)'!T20="",'表 (Excel提出用)'!W20="",'表 (Excel提出用)'!Z20="",'表 (Excel提出用)'!AC20="",'表 (Excel提出用)'!AF20="",'表 (Excel提出用)'!AI20="",'表 (Excel提出用)'!T21="",'表 (Excel提出用)'!W21="",'表 (Excel提出用)'!Z21="",'表 (Excel提出用)'!AC21="",'表 (Excel提出用)'!AF21="",'表 (Excel提出用)'!AI21="",'表 (Excel提出用)'!T22="",'表 (Excel提出用)'!W22="",'表 (Excel提出用)'!Z22="",'表 (Excel提出用)'!AC22="",'表 (Excel提出用)'!AF22="",'表 (Excel提出用)'!AI22="",'表 (Excel提出用)'!T23="",'表 (Excel提出用)'!W23="",'表 (Excel提出用)'!Z23="",'表 (Excel提出用)'!AC23="",'表 (Excel提出用)'!AF23="",'表 (Excel提出用)'!AI23="",'表 (Excel提出用)'!T24="",'表 (Excel提出用)'!W24="",'表 (Excel提出用)'!Z24="",'表 (Excel提出用)'!AC24="",'表 (Excel提出用)'!AF24="",'表 (Excel提出用)'!AI24="",'表 (Excel提出用)'!T25="",'表 (Excel提出用)'!W25="",'表 (Excel提出用)'!Z25="",'表 (Excel提出用)'!AC25="",'表 (Excel提出用)'!AF25="",'表 (Excel提出用)'!AI25=""),2,1) -> 2 | BQ5: =IF('表 (Excel提出用)'!$T$20="","",'表 (Excel提出用)'!$T$20) ->  | BR5: =IF('表 (Excel提出用)'!$W$20="","",'表 (Excel提出用)'!$W$20) ->  | BS5: =IF('表 (Excel提出用)'!$Z$20="","",'表 (Excel提出用)'!$Z$20) ->  | BT5: =IF('表 (Excel提出用)'!$AC$20="","",'表 (Excel提出用)'!$AC$20) ->  | BU5: =IF('表 (Excel提出用)'!$AF$20="","",'表 (Excel提出用)'!$AF$20) ->  | BV5: =IF('表 (Excel提出用)'!$AI$20="","",'表 (Excel提出用)'!$AI$20) ->  | BW5: =IF('表 (Excel提出用)'!$T$21="","",'表 (Excel提出用)'!$T$21) ->  | BX5: =IF('表 (Excel提出用)'!$W$21="","",'表 (Excel提出用)'!$W$21) ->  | BY5: =IF('表 (Excel提出用)'!$Z$21="","",'表 (Excel提出用)'!$Z$21) ->  | BZ5: =IF('表 (Excel提出用)'!$AC$21="","",'表 (Excel提出用)'!$AC$21) ->  | CA5: =IF('表 (Excel提出用)'!$AF$21="","",'表 (Excel提出用)'!$AF$21) ->  | CB5: =IF('表 (Excel提出用)'!$AI$21="","",'表 (Excel提出用)'!$AI$21) ->  | CC5: =IF('表 (Excel提出用)'!$T$22="","",'表 (Excel提出用)'!$T$22) ->  | CD5: =IF('表 (Excel提出用)'!$W$22="","",'表 (Excel提出用)'!$W$22) ->  | CE5: =IF('表 (Excel提出用)'!$Z$22="","",'表 (Excel提出用)'!$Z$22) ->  | CF5: =IF('表 (Excel提出用)'!$AC$22="","",'表 (Excel提出用)'!$AC$22) ->  | CG5: =IF('表 (Excel提出用)'!$AF$22="","",'表 (Excel提出用)'!$AF$22) ->  | CH5: =IF('表 (Excel提出用)'!$AI$22="","",'表 (Excel提出用)'!$AI$22) ->  | CI5: =IF('表 (Excel提出用)'!$T$23="","",'表 (Excel提出用)'!$T$23) ->  | CJ5: =IF('表 (Excel提出用)'!$W$23="","",'表 (Excel提出用)'!$W$23) ->  | CK5: =IF('表 (Excel提出用)'!$Z$23="","",'表 (Excel提出用)'!$Z$23) ->  | CL5: =IF('表 (Excel提出用)'!$AC$23="","",'表 (Excel提出用)'!$AC$23) ->  | CM5: =IF('表 (Excel提出用)'!$AF$23="","",'表 (Excel提出用)'!$AF$23) ->  | CN5: =IF('表 (Excel提出用)'!$AI$23="","",'表 (Excel提出用)'!$AI$23) ->  | CO5: =IF('表 (Excel提出用)'!$T$24="","",'表 (Excel提出用)'!$T$24) ->  | CP5: =IF('表 (Excel提出用)'!$W$24="","",'表 (Excel提出用)'!$W$24) ->  | CQ5: =IF('表 (Excel提出用)'!$Z$24="","",'表 (Excel提出用)'!$Z$24) ->  | CR5: =IF('表 (Excel提出用)'!$AC$24="","",'表 (Excel提出用)'!$AC$24) ->  | CS5: =IF('表 (Excel提出用)'!$AF$24="","",'表 (Excel提出用)'!$AF$24) ->  | CT5: =IF('表 (Excel提出用)'!$AI$24="","",'表 (Excel提出用)'!$AI$24) ->  | CU5: =IF('表 (Excel提出用)'!$T$25="","",'表 (Excel提出用)'!$T$25) ->  | CV5: =IF('表 (Excel提出用)'!$W$25="","",'表 (Excel提出用)'!$W$25) ->  | CW5: =IF('表 (Excel提出用)'!$Z$25="","",'表 (Excel提出用)'!$Z$25) ->  | CX5: =IF('表 (Excel提出用)'!$AC$25="","",'表 (Excel提出用)'!$AC$25) ->  | CY5: =IF('表 (Excel提出用)'!$AF$25="","",'表 (Excel提出用)'!$AF$25) ->  | CZ5: =IF('表 (Excel提出用)'!$AI$25="","",'表 (Excel提出用)'!$AI$25) ->  | DA5: =IF(OR(AZ5="",BP5=""),"",IF(AND(AZ5=999,BP5=999),999,IF(AND(AZ5=1,BP5=2),1,IF(AND(AZ5=2,BP5=1),2,IF(AND(AZ5=1,BP5=1),3,4))))) ->  | DB5: =IF('表 (Excel提出用)'!F27="","",IF('表 (Excel提出用)'!F27="1.単一定食",1,IF('表 (Excel提出用)'!F27="2.複数定食",2,IF('表 (Excel提出用)'!F27="3.混合",3,IF('表 (Excel提出用)'!F27="4.カフェテリア",4,IF('表 (Excel提出用)'!F27="5.その他",5& '表 (Excel提出用)'!M27)))))) ->  | DC5: =IF('表 (Excel提出用)'!F28="","",IF('表 (Excel提出用)'!F28="有",1,IF('表 (Excel提出用)'!F28="無",2))) ->  | DD5: =IF('表 (Excel提出用)'!AN27=TRUE,1,"") ->  | DE5: =IF('表 (Excel提出用)'!AN28=TRUE,1,"") ->  | DF5: =IF('表 (Excel提出用)'!AN29=TRUE,1,"") ->  | DG5: =IF('表 (Excel提出用)'!Z28="","",'表 (Excel提出用)'!Z28) ->  | DH5: =IF('表 (Excel提出用)'!F30="","",IF('表 (Excel提出用)'!F30="有",1,IF('表 (Excel提出用)'!F30="無",2))) ->  | DI5: =IF('表 (Excel提出用)'!AN34=TRUE,1,"") ->  | DJ5: =IF('表 (Excel提出用)'!AN35=TRUE,1,"") ->  | DK5: =IF('表 (Excel提出用)'!AN36=TRUE,1,"") ->  | DL5: =IF('表 (Excel提出用)'!AN37=TRUE,1,"") ->  | DM5: =IF('表 (Excel提出用)'!AN38=TRUE,1,"") ->  | DN5: =IF('表 (Excel提出用)'!AF30="","",'表 (Excel提出用)'!AF30) ->  | DO5: =IF(AND('表 (Excel提出用)'!F31="",'表 (Excel提出用)'!AR34=FALSE),"",IF('表 (Excel提出用)'!AR34=TRUE,1,IF('表 (Excel提出用)'!AR34=FALSE,2))) ->  | DP5: =IF(AND('表 (Excel提出用)'!F31="",'表 (Excel提出用)'!AR35=FALSE),"",IF('表 (Excel提出用)'!AR35=TRUE,1,IF('表 (Excel提出用)'!AR35=FALSE,2))) ->  | DQ5: =IF('表 (Excel提出用)'!S31="","",'表 (Excel提出用)'!S31) ->  | DR5: =IF('表 (Excel提出用)'!F31="","",IF('表 (Excel提出用)'!AR36=TRUE,1)+IF('表 (Excel提出用)'!AR36=FALSE,2)) ->  | DS5: =IF(OR(DO5="",DP5=""),"",IF(AND(DO5=999,DP5=999),999,IF(AND(DO5=1,DR5=2),1,IF(AND(DO5=2,DR5=1),2,IF(AND(DO5=1,DR5=1),3,4))))) ->  | DT5: =IF('表 (Excel提出用)'!F32="","",IF('表 (Excel提出用)'!F32="有",1,IF('表 (Excel提出用)'!F32="無",2))) ->  | DU5: =IF('表 (Excel提出用)'!AR27=TRUE,"1","") ->  | DV5: =IF('表 (Excel提出用)'!AR28=TRUE,"1","") ->  | DW5: =IF('表 (Excel提出用)'!AR29=TRUE,"1","") ->  | DX5: =IF('表 (Excel提出用)'!AR30=TRUE,"1","") ->  | DY5: =IF('表 (Excel提出用)'!AE32="","",'表 (Excel提出用)'!AE32) ->  | DZ5: =IF('表 (Excel提出用)'!M35="","",IF('表 (Excel提出用)'!M35="有",1,IF('表 (Excel提出用)'!M35="無",2))) ->  | EA5: =IF('表 (Excel提出用)'!M36="","",IF('表 (Excel提出用)'!M36="有",1,IF('表 (Excel提出用)'!M36="無",2))) ->  | EB5: =IF('表 (Excel提出用)'!Z36="","",IF('表 (Excel提出用)'!Z36="有",1,IF('表 (Excel提出用)'!Z36="無",2))) ->  | EC5: =IF(AND('表 (Excel提出用)'!Z36="",'表 (Excel提出用)'!AG36=""),"",IF(AND('表 (Excel提出用)'!Z36="有",'表 (Excel提出用)'!AG36=""),"",'表 (Excel提出用)'!AG36)) ->  | ED5: =IF('裏（Excel提出用）'!AD10=0,"",IF('裏（Excel提出用）'!AD10=1,1,2)) ->  | EE5: =IF('裏（Excel提出用）'!H8="","",IF('裏（Excel提出用）'!H8="八訂",1,IF('裏（Excel提出用）'!H8="七訂",2))) ->  | EF5: =IF('裏（Excel提出用）'!H10="","",'裏（Excel提出用）'!H10) ->  | EG5: =IF('裏（Excel提出用）'!H12="","",'裏（Excel提出用）'!H12) ->  | EH5: =IF('裏（Excel提出用）'!H14="","",'裏（Excel提出用）'!H14) ->  | EI5: =IF('裏（Excel提出用）'!H16="","",'裏（Excel提出用）'!H16) ->  | EJ5: =IF('裏（Excel提出用）'!H18="","",'裏（Excel提出用）'!H18) ->  | EK5: =IF('裏（Excel提出用）'!H20="","",'裏（Excel提出用）'!H20) ->  | EL5: =IF('裏（Excel提出用）'!H22="","",'裏（Excel提出用）'!H22) ->  | EM5: =IF('裏（Excel提出用）'!H24="","",'裏（Excel提出用）'!H24) ->  | EN5: =IF('裏（Excel提出用）'!H26="","",'裏（Excel提出用）'!H26) ->  | EO5: =IF('裏（Excel提出用）'!H28="","",'裏（Excel提出用）'!H28) ->  | EP5: =IF('裏（Excel提出用）'!H30="","",'裏（Excel提出用）'!H30) ->  | EQ5: =IF('裏（Excel提出用）'!K10="","",'裏（Excel提出用）'!K10) ->  | ER5: =IF('裏（Excel提出用）'!K12="","",'裏（Excel提出用）'!K12) ->  | ES5: =IF('裏（Excel提出用）'!K14="","",'裏（Excel提出用）'!K14) ->  | ET5: =IF('裏（Excel提出用）'!K16="","",'裏（Excel提出用）'!K16) ->  | EU5: =IF('裏（Excel提出用）'!K18="","",'裏（Excel提出用）'!K18) ->  | EV5: =IF('裏（Excel提出用）'!K20="","",'裏（Excel提出用）'!K20) ->  | EW5: =IF('裏（Excel提出用）'!K22="","",'裏（Excel提出用）'!K22) ->  | EX5: =IF('裏（Excel提出用）'!K24="","",'裏（Excel提出用）'!K24) ->  | EY5: =IF('裏（Excel提出用）'!K26="","",'裏（Excel提出用）'!K26) ->  | EZ5: =IF('裏（Excel提出用）'!K28="","",'裏（Excel提出用）'!K28) ->  | FA5: =IF('裏（Excel提出用）'!K30="","",'裏（Excel提出用）'!K30) ->  | FB5: ='裏（Excel提出用）'!H32 ->  | FC5: ='裏（Excel提出用）'!H33 ->  | FD5: ='裏（Excel提出用）'!H34 ->  | FE5: ='裏（Excel提出用）'!K32 ->  | FF5: ='裏（Excel提出用）'!K33 ->  | FG5: ='裏（Excel提出用）'!K34 ->  | FH5: =IF('裏（Excel提出用）'!T3="","",'裏（Excel提出用）'!T3) ->  | FI5: =IF('裏（Excel提出用）'!T4="","",'裏（Excel提出用）'!T4) ->  | FJ5: =IF('裏（Excel提出用）'!T5="","",'裏（Excel提出用）'!T5) ->  | FK5: =IF('裏（Excel提出用）'!T6="","",'裏（Excel提出用）'!T6) ->  | FL5: =IF('裏（Excel提出用）'!T7="","",'裏（Excel提出用）'!T7) ->  | FM5: =IF('裏（Excel提出用）'!T8="","",'裏（Excel提出用）'!T8) ->  | FN5: =IF('裏（Excel提出用）'!T9="","",'裏（Excel提出用）'!T9) ->  | FO5: =IF('裏（Excel提出用）'!T10="","",'裏（Excel提出用）'!T10) ->  | FP5: =IF('裏（Excel提出用）'!T11="","",'裏（Excel提出用）'!T11) ->  | FQ5: =IF('裏（Excel提出用）'!T12="","",'裏（Excel提出用）'!T12) ->  | FR5: =IF('裏（Excel提出用）'!T13="","",'裏（Excel提出用）'!T13) ->  | FS5: =IF('裏（Excel提出用）'!T14="","",'裏（Excel提出用）'!T14) ->  | FT5: =IF('裏（Excel提出用）'!T15="","",'裏（Excel提出用）'!T15) ->  | FU5: =IF('裏（Excel提出用）'!T16="","",'裏（Excel提出用）'!T16) ->  | FV5: =IF('裏（Excel提出用）'!T17="","",'裏（Excel提出用）'!T17) ->  | FW5: =IF('裏（Excel提出用）'!T18="","",'裏（Excel提出用）'!T18) ->  | FX5: =IF('裏（Excel提出用）'!T19="","",'裏（Excel提出用）'!T19) ->  | FY5: =IF('裏（Excel提出用）'!T20="","",'裏（Excel提出用）'!T20) ->  | FZ5: =IF('裏（Excel提出用）'!T21="","",'裏（Excel提出用）'!T21) ->  | GA5: =IF('裏（Excel提出用）'!T22="","",'裏（Excel提出用）'!T22) ->  | GB5: =IF('裏（Excel提出用）'!T23="","",'裏（Excel提出用）'!T23) ->  | GC5: =IF('裏（Excel提出用）'!T24="","",'裏（Excel提出用）'!T24) ->  | GD5: =IF('裏（Excel提出用）'!T25="","",'裏（Excel提出用）'!T25) ->  | GE5: =IF('裏（Excel提出用）'!T26="","",'裏（Excel提出用）'!T26) ->  | GF5: =IF('裏（Excel提出用）'!T27="","",'裏（Excel提出用）'!T27) ->  | GG5: =IF('裏（Excel提出用）'!T28="","",'裏（Excel提出用）'!T28) ->  | GH5: =IF('裏（Excel提出用）'!T29="","",'裏（Excel提出用）'!T29) ->  | GI5: =IF('裏（Excel提出用）'!T30="","",'裏（Excel提出用）'!T30) ->  | GJ5: =IF('裏（Excel提出用）'!T31="","",'裏（Excel提出用）'!T31) ->  | GK5: =IF('裏（Excel提出用）'!T32="","",'裏（Excel提出用）'!T32) ->  | GL5: =IF('裏（Excel提出用）'!T33="","",'裏（Excel提出用）'!T33) ->  | GM5: =IF('裏（Excel提出用）'!T34="","",'裏（Excel提出用）'!T34) ->  | GN5: =IF(OR(ED5=2,ED5=999,ED5=""),"",SUM(FH5:GM5)) ->  | GO5: =IF('裏（Excel提出用）'!W3="","",'裏（Excel提出用）'!W3) ->  | GP5: =IF('裏（Excel提出用）'!W4="","",'裏（Excel提出用）'!W4) ->  | GQ5: =IF('裏（Excel提出用）'!W5="","",'裏（Excel提出用）'!W5) ->  | GR5: =IF('裏（Excel提出用）'!W6="","",'裏（Excel提出用）'!W6) ->  | GS5: =IF('裏（Excel提出用）'!W7="","",'裏（Excel提出用）'!W7) ->  | GT5: =IF('裏（Excel提出用）'!W8="","",'裏（Excel提出用）'!W8) ->  | GU5: =IF('裏（Excel提出用）'!W9="","",'裏（Excel提出用）'!W9) ->  | GV5: =IF('裏（Excel提出用）'!W10="","",'裏（Excel提出用）'!W10) ->  | GW5: =IF('裏（Excel提出用）'!W11="","",'裏（Excel提出用）'!W11) ->  | GX5: =IF('裏（Excel提出用）'!W12="","",'裏（Excel提出用）'!W12) ->  | GY5: =IF('裏（Excel提出用）'!W13="","",'裏（Excel提出用）'!W13) ->  | GZ5: =IF('裏（Excel提出用）'!W14="","",'裏（Excel提出用）'!W14) ->  | HA5: =IF('裏（Excel提出用）'!W15="","",'裏（Excel提出用）'!W15) ->  | HB5: =IF('裏（Excel提出用）'!W16="","",'裏（Excel提出用）'!W16) ->  | HC5: =IF('裏（Excel提出用）'!W17="","",'裏（Excel提出用）'!W17) ->  | HD5: =IF('裏（Excel提出用）'!W18="","",'裏（Excel提出用）'!W18) ->  | HE5: =IF('裏（Excel提出用）'!W19="","",'裏（Excel提出用）'!W19) ->  | HF5: =IF('裏（Excel提出用）'!W20="","",'裏（Excel提出用）'!W20) ->  | HG5: =IF('裏（Excel提出用）'!W21="","",'裏（Excel提出用）'!W21) ->  | HH5: =IF('裏（Excel提出用）'!W22="","",'裏（Excel提出用）'!W22) ->  | HI5: =IF('裏（Excel提出用）'!W23="","",'裏（Excel提出用）'!W23) ->  | HJ5: =IF('裏（Excel提出用）'!W24="","",'裏（Excel提出用）'!W24) ->  | HK5: =IF('裏（Excel提出用）'!W25="","",'裏（Excel提出用）'!W25) ->  | HL5: =IF('裏（Excel提出用）'!W26="","",'裏（Excel提出用）'!W26) ->  | HM5: =IF('裏（Excel提出用）'!W27="","",'裏（Excel提出用）'!W27) ->  | HN5: =IF('裏（Excel提出用）'!W28="","",'裏（Excel提出用）'!W28) ->  | HO5: =IF('裏（Excel提出用）'!W29="","",'裏（Excel提出用）'!W29) ->  | HP5: =IF('裏（Excel提出用）'!W30="","",'裏（Excel提出用）'!W30) ->  | HQ5: =IF('裏（Excel提出用）'!W31="","",'裏（Excel提出用）'!W31) ->  | HR5: =IF('裏（Excel提出用）'!W32="","",'裏（Excel提出用）'!W32) ->  | HS5: =IF('裏（Excel提出用）'!W33="","",'裏（Excel提出用）'!W33) ->  | HT5: =IF('裏（Excel提出用）'!W34="","",'裏（Excel提出用）'!W34) ->  | HU5: =IF(OR(ED5=2,ED5=999,ED5=""),"",SUM(GO5:HT5)) ->  | HV5: =IF(OR(COUNTIFS('裏（Excel提出用）'!B40,""),COUNTIFS('裏（Excel提出用）'!B40,"*なし*")),2,1) -> 2

Sheet 記入例 表 (Excel提出用)
A1: セルの説明 | D1: 【オレンジ】 | G1: 入力必須（入力すると白色に変わります） | R1: 【黄色】 | V1: 関数が入っているため、自動計算されます。
D2: 【グレー】 | G2: 条件に合致すると、オレンジに変わります。オレンジになれば、入力してください。
B3: （記入例）
B4: 特定給食施設栄養管理報告書（事業所・学校等） | W4: （令和 | AB4: 3 | AD4: 年 | AF4: 11 | AH4: 月分）
B5: 施設名 | D5: 株式会社○○ 社員食堂 | N5: 設置者（職・氏名） | X5: 取締役社長 ○○ ○○
B6: 郵便番号 所在地 | D6: 〒555-5555 大阪府大阪市阿倍野区○○町1-1-1 | N6: 給食責任者（職・氏名） | X6: ＊＊担当部長 □□ □□
B7: 電話番号 FAX番号 | D7: 06-0000-0000 | N7: 作成者（職・氏名） | X7: 管理栄養士 △△ △△
B8: e-mail | D8: xxx_xxx@abc.jp | N8: 連絡先電話番号 | X8: 06-0000-0001
B10: 【施設種別】 | E10: 1.事業所 | I10: （ | M10: ） | N10: 委託業者 | P10: 名称 | T10: 株式会社 ○○
B11: 給食従事者数（人） | F11: 施 設 | J11: 委託業者 | P11: 代表者 | T11: ■■ ■■
F12: 常 勤 | H12: 常勤以外 | J12: 常 勤 | L12: 常勤以外 | P12: 所在地 | T12: 大阪市北区○○町1-2-3
C13: 管理栄養士 | F13: 0 | H13: 0 | J13: 1 | L13: 0 | P13: 電話番号 | T13: 06-0000-1234
C14: 栄 養 士 | F14: 0 | H14: 0 | J14: 0 | L14: 0 | N14: 【給食管理等について検討する会議】 | AA14: 有 | AF14: （ | AG14: 12 | AI14: 回/年）
C15: 調 理 師 | F15: 0 | H15: 0 | J15: 3 | L15: 0 | N15: 構成職種 | P15: 施設
C16: 調 理 員 | F16: 0 | H16: 0 | J16: 8 | L16: 2 | AH16: ( | AI16: 食堂 担当 | AK16: ) | AN16: TRUE
C17: そ の 他 | F17: 0 | H17: 0 | J17: 0 | L17: 0 | P17: 委託業者
C18: 合 計 | F18: =SUM(F13:F17) -> 0 | H18: =SUM(H13:H17) -> 0 | J18: =SUM(J13:J17) -> 12 | L18: =SUM(L13:L17) -> 2 | R18: 朝食 | V18: 昼食 | Z18: 夕食 | AH18: 合計 | AN18: FALSE
B19: 【施設外調理】 | F19: 無 | H19: （ | M19: ） | N19: 食数 | R19: 0 | V19: 500 | Z19: 0 | AH19: =SUM(R19:AD19) -> 500 | AN19: TRUE
B20: 【給食利用者の把握】 | H20: 有 | N20: 食材料費 （円／人） | R20: 0 | V20: 170 | Z20: 0 | AH20: =SUM(R20:AD20) -> 170 | AN20: FALSE
H21: （ | I21: R3 | J21: 年 | K21: 11 | L21: 月現在） | N21: 身体活動レベル・年齢区分・性別人数 | P21: 身体活動 レベル | T21: 15～17歳 | W21: 18～29歳 | Z21: 30～49歳 | AC21: 50～64歳 | AF21: 65～74歳 | AI21: 75歳以上 | AN21: TRUE
B22: 【健康管理部門との連携】 | H22: 有 | P22: Ⅰ | R22: 男性 | T22: 0 | W22: 0 | Z22: 0 | AC22: 0 | AF22: 0 | AI22: 0 | AN22: FALSE
B23: 【身体の状況】 | H23: 献立への配慮 | R23: 女性 | T23: 0 | W23: 0 | Z23: 0 | AC23: 0 | AF23: 0 | AI23: 0 | AN23: FALSE
B24: １.体格 | D24: 肥満 | F24: 20 | G24: ％ | H24: 有 | I24: （ | J24: ご飯の量調節可 | M24: ） | P24: Ⅱ | R24: 男性 | T24: 0 | W24: 180 | Z24: 200 | AC24: 60 | AF24: 0 | AI24: 0
D25: やせ | F25: 10 | G25: ％ | H25: 有 | I25: （ | J25: ご飯の量調節可 | M25: ） | R25: 女性 | T25: 0 | W25: 180 | Z25: 150 | AC25: 30 | AF25: 0 | AI25: 0
B26: ２.高血圧 | F26: 15 | G26: ％ | H26: 有 | I26: （ | J26: 減塩メニュー | M26: ） | P26: Ⅲ | R26: 男性 | T26: 0 | W26: 20 | Z26: 10 | AC26: 0 | AF26: 0 | AI26: 0
B27: ３.脂質異常症 | F27: 18 | G27: ％ | H27: 無 | I27: （ | M27: ） | R27: 女性 | T27: 0 | W27: 0 | Z27: 0 | AC27: 0 | AF27: 0 | AI27: 0
B28: ４.高血糖 | F28: 8 | G28: ％ | H28: 無 | I28: （ | M28: ） | P28: 合計 | T28: =SUM(T22:T27) -> 0 | W28: =SUM(W22:W27) -> 380 | Z28: =SUM(Z22:Z27) -> 360 | AC28: =SUM(AC22:AC27) -> 90 | AF28: =SUM(AF22:AF27) -> 0 | AI28: =SUM(AI22:AI27) -> 0
B29: 【給食形態】 | F29: 4.カフェテリア | L29: （ | AD29: ）
B30: 【献立の提示】 | F30: 有 | H30: [ | M30: （ | S30: ） | Y30: ( | AJ30: )]
F31: ※カフェテリア等の場合【モデル献立の提示】 | AH31: 有
B32: 【栄養成分表示】 | F32: 有 | AE32: ( | AF32: カルシウム | AK32: )
B33: 【喫食調査】 | F33: 有 | R33: ( | X33: ） | AD33: （ | AK33: )
B34: 【栄養情報の提供】 | F34: 有 | AD34: （ | AE34: ポータルサイト | AK34: )
B35: 栄養指導 | C35: 個別指導 | E35: 内容 | G35: 集団指導 | K35: 内容 | AH35: ( | AK35: )
C36: 20 | D36: 人 | E36: メタボリック シンドローム | G36: 1 | H36: 回 | I36: 20 | J36: 人 | K36: 方法 | X36: ( | AK36: )
B37: 【非常時危機管理対策】 | G37: 食中毒マニュアルの整備 | M37: 有
B38: （食関連） | G38: 災害時マニュアルの整備 | M38: 有 | T38: 食品等の備蓄 | Z38: 有 | AF38: ( | AG38: 3 | AI38: 日分 | AK38: )
B39: 【施設の健康課題に対する取り組み】 | N39: 【栄養管理の評価】
B40: 生活習慣病予防のためのおすすめメニューサンプルの掲示 | N40: 減塩メニューの啓発を続け、食塩摂取量の減少に努める。
AK41: （Ｒ３.３）

Sheet 記入例 裏（Excel提出用）
A1: セルの説明 | D1: 【オレンジ】 | G1: 入力必須（入力すると白色に変わります） | Q1: 【黄色】 | S1: 関数が入っているため、自動計算されます。
D2: 【グレー】 | G2: 条件に合致すると、オレンジに変わります。オレンジになれば、入力してください。
B3: （記入例）
B4: ※1 | C4: 男性 | E4: 18～69 | G4: 歳 | H4: 女性 | J4: 18～69 | L4: 歳 | N4: 食品群 | T4: 目標量 （ｇ） | W4: 給与量 （ｇ）
B5: ※2 | C5: 1人[ | H5: ( | K5: )]当たり | N5: 穀類 | P5: 米 | T5: 95 | W5: 103
B6: ※3 | C6: 下記以外に食事基準の設定がある食事 | P6: パ ン 類 | T6: 0 | W6: 0
I7: （ | J7: 0 | K7: ）種類 | P7: め ん 類 | T7: 53 | W7: 38
P8: その他の穀類 | T8: 0 | W8: 2
B9: 【基準設定】 | H9: （ | I9: R3 | J9: 年 | K9: 3 | L9: 月 | M9: ） | N9: いも及び でん粉類 | P9: い も | T9: 25 | W9: 28
B10: 【栄養価計算の基準】 | H10: 八訂 | P10: いも加工品 | T10: 3 | W10: 0
B11: 栄養素等 | F11: （単位） | H11: 給与栄養目標量 | K11: 給与栄養量 | N11: 砂糖及び甘味類 | T11: 3 | W11: 3
B12: エネルギー | F12: （ｋｃａｌ） | H12: 800 | K12: 780 | N12: 豆類 | P12: 大豆製品 | T12: 32 | W12: 22
P13: 大豆、その他の豆類 | T13: 0 | W13: 0
B14: たんぱく質 | F14: （ｇ） | H14: 30 | K14: 31 | N14: 種 実 類 | T14: 0 | W14: 0
N15: 野菜類 | P15: 緑黄色野菜 | T15: 32 | W15: 29
B16: 脂 質 | F16: （ｇ） | H16: 22 | K16: 21 | P16: その他の野菜 | T16: 74 | W16: 78
P17: 野菜漬物 | T17: 2 | W17: 3
B18: カルシウム | F18: （ｍｇ） | H18: 220 | K18: 180 | N18: 果実類 | P18: 果 実 | T18: 6 | W18: 3
P19: 果実加工品 | T19: 0 | W19: 0
B20: 鉄 | F20: （ｍｇ） | H20: 3.1 | K20: 2.8 | N20: きのこ類 | T20: 10 | W20: 7
N21: 藻 類 | T21: 1 | W21: 2
B22: ビタミンＡ （レチノール活性当量） | F22: （μｇＲＡＥ） | H22: 220 | K22: 200 | N22: 魚介類 | P22: 魚介類（生） | T22: 17 | W22: 20
P23: 干物、塩蔵、缶詰 | T23: 11 | W23: 6
B24: ビタミンＢ1 | F24: （ｍｇ） | H24: 0.4 | K24: 0.3 | P24: 練 製 品 | T24: 4 | W24: 2
N25: 肉類 | P25: 肉類（生） | T25: 63 | W25: 69
B26: ビタミンＢ2 | F26: （ｍｇ） | H26: 0.4 | K26: 0.3 | P26: 肉加工品 | T26: 2 | W26: 3
N27: 卵 類 | T27: 13 | W27: 10
B28: ビタミンＣ | F28: （ｍｇ） | H28: 30 | K28: 25 | N28: 乳類 | P28: 牛 乳 | T28: 12 | W28: 10
P29: 乳 製 品 | T29: 3 | W29: 1
B30: 食物繊維 | F30: （ｇ） | H30: 7 | K30: 5.7 | N30: 油脂類 | P30: 植 物 性 | T30: 0 | W30: 0
P31: 動 物 性 | T31: 3 | W31: 3
B32: 食塩相当量 | F32: （ｇ） | H32: 2.6 | K32: 3 | N32: 調味料 及び 香辛料類 | P32: 食 塩 | T32: 0.8 | W32: 1
P33: しょうゆ | T33: 5 | W33: 4
B34: エネルギー 産生栄養素 バランス （％エネルギー） | E34: たんぱく質 | H34: =IF(H14=0,"",H14*4/H12) -> 0.15 | K34: =IF(K14=0,"",K14*4/K12) -> 0.158974359 | P34: み そ | T34: 7 | W34: 7
E35: 脂 質 | H35: =IF(H16=0,"",H16*9/H12) -> 0.2475 | K35: =IF(K16=0,"",K16*9/K12) -> 0.2423076923 | P35: その他の調味料 | T35: 3 | W35: 8
E36: 炭水化物 | H36: =IF(H12=0,"",(H12-(H14*4+H16*9))/H12) -> 0.6025 | K36: =IF(K12=0,"",(K12-(K14*4+K16*9))/K12) -> 0.5987179487 | N36: 調理済み流通食品類 | T36: 11 | W36: 17
N38: 合 計 | T38: =SUM(T5:T37) -> 490.8 | W38: =SUM(W5:W37) -> 479
B39: 上記の食種における栄養補助食品等の使用状況
B41: 栄養補助食品等の名称 | K41: 栄養素名 | O41: 使用回数 | S41: 使用量 | W41: 給与量(単位)
B42: ふりかけ | K42: カルシウム | O42: ( | P42: 1 | Q42: )回/ | R42: 週 | S42: ( | T42: 2 | U42: )g/回 | W42: ( | X42: 200mg | Y42: )/回
B43: - | K43: - | O43: ( | P43: - | Q43: )回/ | R43: 週 | S43: ( | T43: - | U43: )g/回 | W43: ( | X43: - | Y43: )/回
B44: - | K44: - | O44: ( | P44: - | Q44: )回/ | R44: 週 | S44: ( | T44: - | U44: )g/回 | W44: ( | X44: - | Y44: )/回

Sheet 表（紙提出用）
A1: 特定給食施設栄養管理報告書 （事業所・学校等） ( 年 月分）
A2: 施 設 名 | O2: 設 置 者 （職・氏名）
A3: 郵便番号 所 在 地 | O3: 給食責任者（職・氏名）
A4: 電話番号 FAX番号 e-mail | O4: 作 成 者 （職・氏名）
O5: 連絡先 電話番号
A7: 【施設種別】 1 事業所 2 学校 3 （ ） | N7: 委 託 業 者 | O7: 名 称
A8: 給食従事者数（人） | F8: 施 設 | J8: 委託業者 | O8: 代 表 者
F9: 常 勤 | H9: 常勤以外 | J9: 常 勤 | L9: 常勤以外 | O9: 所 在 地
B10: 管理栄養士
B11: 栄 養 士 | O11: 電話番号
B12: 調 理 師 | N12: 【給食管理等について検討する会議】 | W12: 1.有（ 回／年） 2.無
B13: 調 理 員 | N13: 構成職種 | O13: 施設 | Q13: 施設長 ・管理栄養士 ・栄養士 ・産業医 ・保健師 ・看護師 ・事務職 ・調理師（員） ・その他（ ）
B14: そ の 他 | O14: 委託業者 | Q14: 管理栄養士 ・栄養士 ・調理師（員） ・事務職 ・その他（ ）
B15: 合 計 | R15: 朝食 | T15: 昼食 | V15: 夕食 | AB15: 合計
A16: 【施設外調理】 | F16: 1.有 2.無 （内容 ） | N16: 食 数
N17: 食 材 料 費 （円／人)
A18: 【給食利用者の把握】 | G18: 1.有（ 年 月現在） 2.無 | N18: 身体活動レベル・年齢区分・性別人数
A19: 【健康管理部門との連携】 | G19: 1.有 2.無 | N19: 身体活動レベル | R19: 15～17歳 | T19: 18～29歳 | V19: 30～49歳 | X19: 50～64歳 | Z19: 65～74歳 | AB19: 75歳以上
N20: Ⅰ | P20: 男性
A21: 身 体 の 状 況 | H21: 献 立 へ の 配 慮 | P21: 女性
A22: 1.体格 | C22: 肥満 | G22: ％ | H22: 1.有（ ） 2.無 | N22: Ⅱ | P22: 男性
C23: やせ | G23: ％ | H23: 1.有（ ） 2.無 | P23: 女性
A24: 2. 高 血 圧 | G24: ％ | H24: 1.有（ ） 2.無 | N24: Ⅲ | P24: 男性
A25: 3. 脂質異常症 | G25: ％ | H25: 1.有（ ） 2.無 | P25: 女性
A26: 4. 高 血 糖 | G26: ％ | H26: 1.有（ ） 2.無 | N26: 合 計
A27: 【給 食 形 態】 | F27: 1.単一定食 2.複数定食 3 混合 4. カフェテリア 5.（ )
A28: 【献立の提示】 | F28: 1.有( 献立表 ･ 展示〔実物･写真〕 ・ 〔 〕) 2.無 ※カフェテリア等の場合:モデル献立の提示 1.有 2.無
A29: 【栄養成分表示】 | F29: 1.エネルギー 2.たんぱく質 3.脂質 4.炭水化物 5.食塩相当量 6.（ ） 7.無
A30: 【喫 食 調 査】 | F30: 1.嗜好調査（ アンケート ・ ) 2.残食調査 3.無
A31: 【栄養情報の提供】 | F31: 1.ポスター 2.卓上メモ 3.献立表などに一口メモ 4.ポップ 5.（ ） 6.無
A32: 栄養指導 | B32: 個別指導 | E32: 内容 | J32: 集団指導 | N32: 内容 | P32: 生活習慣病（肥満・高血圧・脂質異常症・高血糖） ・（ ）
B33: 人 | M33: 回 | N33: 方法 | P33: 講話 ・ ビデオ
M34: 人
A35: 【非常時危機管理対策】 （食関連） | J35: 食中毒マニュアルの整備 1.有 2.無
J36: 災害時マニュアルの整備 1.有 2.無 | T36: 食品等の備蓄 1.有（ 日分） 2.無
A37: 施設の健康課題に対する取り組み | P37: 栄養管理の評価
AA40: (R3.3）

Sheet 裏（紙提出用）
A2: ※1 | B2: 男性 歳 女性 歳 | O2: 食 品 群 | W2: 目標量（ｇ） | Z2: 給与量（ｇ）
A3: ※2 | B3: １人（ 朝食・昼食・夕食・ ）当たり | O3: 穀類 | R3: 米
A4: ※3 | B4: 下記以外に食事基準の設定がある食事 | R4: パ ン 類
B5: （ 種類） | R5: め ん 類
R6: その他の穀類
A7: 【基準設定】 | G7: （ 年 月 ） | O7: いも及び でん粉類 | R7: い も
A8: 【栄養価計算の基準】 | G8: 八訂 | K8: 七訂 | R8: いも加工品
A9: 栄 養 素 等 | E9: （単位） | G9: 給与栄養目標量 | K9: 給与栄養量 | O9: 砂糖 及び 甘味類
A10: エネルギー | E10: (kcal) | O10: 豆類 | R10: 大豆製品
R11: 大豆、その他の豆類
A12: たんぱく質 | E12: (g) | O12: 種 実 類
O13: 野菜類 | R13: 緑黄色野菜
A14: 脂 質 | E14: (g) | R14: その他の野菜
R15: 野菜漬物
A16: カルシウム | E16: (mg) | O16: 果実類 | R16: 果 実
R17: 果実加工品
A18: 鉄 | E18: (mg) | O18: き の こ 類
O19: 藻 類
A20: ビタミン A (レチノール活性当量） | E20: (μgRAE) | O20: 魚介類 | R20: 魚 介 類 （生）
R21: 干物、塩蔵、缶詰
A22: ビタミン B1 | E22: (mg) | R22: 練 製 品
O23: 肉類 | R23: 肉 類 （生）
A24: ビタミン B2 | E24: (mg) | R24: 肉加工品
O25: 卵 類
A26: ビタミン C | E26: (mg) | O26: 乳類 | R26: 牛 乳
R27: 乳 製 品
A28: 食物繊維 | E28: (g) | O28: 油脂類 | R28: 植 物 性
R29: 動 物 性
A30: 食塩相当量 | E30: (g) | O30: 調味料 及び 香辛料類 | R30: 食 塩
R31: しょうゆ
A32: エネルギー 産生栄養素 バランス （%ｴﾈﾙｷﾞｰ） | D32: たんぱく質 | R32: み そ
R33: その他の調味料
D34: 脂 質 | O34: 調理済み流通食品類
D36: 炭水化物 | O36: 合 計
A39: 上 記 の 食 種 に お け る 栄 養 補 助 食 品 等 の 使 用 状 況
A40: 栄養補助食品等の名称 | K40: 栄養素名 | Q40: 使用回数 | V40: 使用量 | Y40: 給与量（単位）
Q41: 回/週・日 | V41: ｇ/回 | Y41: （ ）/回
Q42: 回/週・日 | V42: ｇ/回 | Y42: （ ）/回
Q43: 回/週・日 | V43: ｇ/回 | Y43: （ ）/回

Sheet 記入要領
